[Event "Continental-ch Women America 2017"]
[Site "Villa Martelli"]
[Date "2017.09.10"]
[Round "5"]
[White "Cordero, Daniela"]
[Black "Strgacich, Aylen"]
[Result "1-0"]
[ECO "D74"]
[WhiteElo "2005"]
[BlackElo "1897"]
[Annotator "NA RC"]
[PlyCount "69"]
[EventDate "2017.??.??"]
[EventType "swiss"]
[EventCountry "ARG"]
[SourceTitle "playchess.com"]
[Source "ChessBase"]
[SourceQuality "1"]
[TimeControl "40/5400+30:1800+30"]

{[%evp 15,66,21,26,21,32767,22,4,32767,32767,32767,32767,32767,32767,32767,32767,0,28,34,160,168,32767,32767,32767,32767,32767,99,120,137,111,59,69,32767,31,10,24,0,2,0,279,325,286,347,309,376,617,720,740,810,1479,1494,1852,1010,1105]} 1. d4 {[%emt 0:00:00]} Nf6 {[%emt 0:00:25]} 2. Nf3 {[%emt 0:00:00]} g6 {[%emt 0:00:07]} 3. c4 {[%emt 0:00:00]} Bg7 {[%emt 0:00:10]} 4. g3 {[%emt 0:00:00]} O-O {[%emt 0:00:26]} 5. Bg2 {[%emt 0:00:07]} d5 {[%emt 0:00:54]} 6. cxd5 {[%emt 0:00:34]} Nxd5 {[%emt 0:03:42]} 7. O-O {[%emt 0:00:22]} c5 {[%emt 0:02:49]} 8. e4 {[%emt 0:07:57]} Nf6 {[%emt 0:09:16] LiveBook: 47 Games} 9. e5 {[%emt 0:00:29]} Nd5 {[%emt 0:00:36]} 10. Nc3 {[%emt 0:10:21]} cxd4 {[%emt 0:06:44]} 11. Qxd4 {[%emt 0:02:50]} Nxc3 {[%emt 0:00:09]} 12. Qxc3 {[%emt 0:00:23]} Nc6 {[%emt 0:00:02] D75: Fianchetto Grünfeld: Main Line with 7...c5} 13. Bf4 {[%emt 0:02:59]} Qb6 $146 {[%emt 0:05:22]} ({Predecessor:} 13... Bf5 14. Qc5 Rc8 15. Rfd1 Qb6 16. Qxb6 axb6 17. Rd5 Be4 18. Rd7 Bxf3 19. Bxf3 Nxe5 20. Bxe5 Bxe5 21. Rxe7 Bxb2 {½-½ (29) Ladanyi,T (2215)-Kis,B (2145) Budapest 1998}) 14. h3 {[%emt 0:11:53]} h6 {[%emt 0:01:19]} 15. Be3 {[%emt 0:09:59]} Qc7 {[%emt 0:05:38]} 16. b4 {[%emt 0:02:08]} Kh7 {[%emt 0:09:53] [#]} (16... a6 $11 {remains equal.}) 17. b5 $1 {[%emt 0:07:37]} Bxe5 {[%emt 0:01:03]} 18. Nxe5 {[%emt 0:00:08]} Qxe5 {[%emt 0:00:07]} 19. Qc4 {[%emt 0:01:03]} Nd8 {[%emt 0:09:57]} 20. Qh4 {[%emt 0:07:46]} g5 {[%emt 0:03:42]} 21. Qb4 {[%emt 0:03:19]} a5 {[%emt 0:10:58]} 22. Qa3 {[%emt 0:02:03]} Qxb5 {[%emt 0:01:25]} 23. Qxe7 {[%emt 0:02:09]} Re8 $1 {[%emt 0:02:00]} 24. Qc7 {[%emt 0:04:13]} Bf5 {[%emt 0:11:49]} 25. Rac1 {[%emt 0:15:28]} Rc8 {[%emt 0:06:52]} 26. Qd6 {[%emt 0:00:19]} Nc6 $2 {[%emt 0:00:00] [#]} (26... Re6 $11 {and Black has nothing to worry.} 27. Qa3 Rxc1 28. Rxc1 Be4) 27. Rc5 $1 {[%emt 0:01:22]} Qd3 {[%emt 0:01:02] [#]} 28. Rd5 $1 {[%emt 0:01:07]} Qc2 {[%emt 0:01:12]} 29. Rc1 {[%emt 0:01:43]} Qxa2 $2 {[%emt 0:05:12]} (29... Rxe3 30. Rxc2 Re1+ 31. Kh2 Bxc2) 30. Rxf5 {[%emt 0:00:09]} Qe6 {[%emt 0:02:01]} 31. Qd3 {[%emt 0:00:37]} Kg8 {[%emt 0:00:16]} 32. Bd5 {[%emt 0:01:39]} Nb4 {[%emt 0:01:13]} 33. Bxe6 {[%emt 0:01:11]} Rxc1+ $18 {[%emt 0:00:00]} 34. Bxc1 {[%emt 0:00:12]} Nxd3 {[%emt 0:00:00]} 35. Bxf7+ 1-0